bitfinex/quotes_SOLUSD_20251006
["timestamp","ask_amount","ask_price","bid_price","bid_amount"]
[1759764967997,5.01874296,235.92,235.87,20.8]
[1759764968197,8.03963406,235.92,235.85,0.72]
[1759764968389,8.03963406,235.92,235.86,2.78282017]
[1759764968587,5.01874296,235.92,235.87,2.78282017]
[1759764968792,7.35963406,235.92,235.87,0.72]
[1759764969004,4.33874296,235.92,235.87,0.72]
[1759764969515,4.33874296,235.92,235.87,30.38]
[1759764969516,17.95644653,235.92,235.87,30.38]
[1759764969915,3.7008911,235.91,235.87,30.38]
[1759764970809,3.0208911,235.89,235.83,0.72]
[1759764971020,3.0208911,235.89,235.85,30.38]
[1759764971217,0.1,235.92,235.86,0.72]
[1759764971218,3.0208911,235.91,235.86,0.72]
[1759764971519,0.1,235.92,235.86,0.72]
[1759764972015,0.1,235.92,235.87,2.77679853]
[1759764972216,0.1,235.92,235.88,3.49679853]
[1759764972421,0.1,235.92,235.88,0.72]
[1759764972628,0.1,235.92,235.89,0.72]
[1759764972921,4.33872628,235.92,235.9,31.1]
[1759764973106,4.33872628,235.92,235.9,30.38]
[1759764973606,8.03961738,235.92,235.88,30.38]
[1759764974014,4.33872628,235.92,235.88,30.38]
[1759764974406,0.1,235.92,235.89,0.72]
[1759764974607,0.1,235.92,235.9,0.72]
[1759764975120,0.1,235.92,235.91,0.72]
[1759764975294,4.33881332,235.92,235.89,0.72]
[1759764975499,0.1,235.92,235.88,30.38]
[1759764975731,0.1,235.92,235.9,0.72]
[1759764976826,0.1,235.92,235.9,4.95908191]
[1759764977196,0.1,235.92,235.91,0.72]
[1759764978819,0.1,235.92,235.91,4.95890466]
[1759764979017,0.1,235.92,235.91,3.49342011]
[1759764981703,0.1,235.92,235.91,3.49370604]
[1759764985525,0.1,235.92,235.91,7.7326107]
[1759764986144,0.1,235.92,235.91,3.49370604]
[1759764989347,0.1,235.92,235.91,2.77370604]
[1759764989526,0.1,235.92,235.91,3.47370604]
[1759764990529,0.1,235.92,235.91,33.13370604]
[1759764990739,0.1,235.92,235.91,2.77370604]
[1759764991039,0.1,235.92,235.91,33.13370604]
[1759764992118,0.1,235.92,235.91,33.83370604]
[1759764993922,0.1,235.92,235.91,33.13370604]
[1759764994539,0.1,235.92,235.91,33.83370604]
[1759764995232,0.1,235.92,235.91,33.82370604]
[1759764995821,0.1,235.92,235.91,38.0626107]
[1759764998421,0.1,235.92,235.91,7.7026107]
[1759764998654,0.1,235.92,235.91,54.60370604]
[1759764999029,0.1,235.92,235.91,24.26370604]
[1759764999343,0.1,235.92,235.91,54.60370604]
[1759764999717,0.1,235.92,235.91,69.71908591]
[1759765000139,0.1,235.92,235.91,3.46370604]
[1759765000330,0.1,235.92,235.91,54.60370604]
[1759765001326,0.1,235.92,235.91,69.71908591]
[1759765003455,0.1,235.94,235.91,69.71908591]
[1759765003749,0.1,235.94,235.92,3.46370604]
[1759765003948,0.1,235.94,235.93,33.11370604]
[1759765004126,0.1,235.94,235.93,33.80370604]
[1759765004754,0.1,235.94,235.93,49.3081788]
[1759765005930,0.1,235.94,235.93,53.54672413]
[1759765008054,0.1,235.94,235.93,53.56052679]
[1759765008269,0.1,235.94,235.93,48.91872658]
[1759765008846,0.1,235.94,235.93,53.56042831]
[1759765009154,0.1,235.94,235.93,48.91872658]
[1759765009461,0.1,235.94,235.93,53.5602964]
[1759765010258,0.1,235.94,235.93,53.5402964]
[1759765010960,0.1,235.94,235.93,48.89872658]
[1759765011337,0.1,235.99,235.96,20.8]
[1759765011557,0.1,235.99,235.98,20.8]
[1759765011767,0.1,235.99,235.98,23.57370604]
[1759765012658,0.1,235.99,235.98,33.09370604]
[1759765013250,0.1,235.99,235.98,38.04135329]
[1759765013552,4.33585826,236.08,235.98,33.80370604]
[1759765013755,0.69,236.04,235.99,2.77370604]
[1759765014062,0.69,236.06,236.0,33.09370604]
[1759765014255,0.69,236.06,236.01,2.77370604]
[1759765014456,0.69,236.05,236.02,33.09370604]
[1759765014760,0.1,236.08,236.03,2.77370604]
[1759765014958,0.1,236.08,236.04,33.09370604]
[1759765015258,0.1,236.08,236.05,33.09370604]
[1759765015450,0.1,236.08,236.06,2.77370604]
[1759765015656,0.1,236.08,236.07,33.09370604]
[1759765016247,0.1,236.08,236.07,33.80370604]
[1759765016465,0.1,236.08,236.07,48.91621293]
[1759765016768,0.1,236.08,236.07,57.36667457]
[1759765016946,0.1,236.08,236.07,2.77370604]
[1759765017146,4.33585225,236.08,236.07,2.77370604]
[1759765017463,4.33585225,236.08,236.07,33.07370604]
[1759765018539,5.02585225,236.08,236.07,33.07370604]
[1759765021469,5.02585225,236.08,236.07,30.3]
[1759765022462,5.02585225,236.08,236.07,33.79307673]
[1759765022463,0.1,236.08,236.07,33.79307673]
[1759765022671,0.1,236.08,236.07,44.66955194]
[1759765023065,0.1,236.08,236.07,48.90558362]
[1759765023642,0.1,236.1,236.09,31.67647521]
[1759765023958,0.1,236.1,236.09,64.75955194]
[1759765024150,0.1,236.1,236.09,65.46955194]
[1759765024773,0.1,236.1,236.09,69.70522477]
[1759765026683,0.1,236.1,236.09,65.46955194]
[1759765026971,0.1,236.1,236.09,69.70522477]
[1759765027143,0.1,236.1,236.09,65.46955194]
[1759765027771,0.1,236.1,236.09,69.70522477]
[1759765028276,0.1,236.14,236.13,31.67647521]
[1759765028579,0.1,236.23,236.18,10.87647521]
[1759765028758,0.1,236.23,236.19,37.29695623]
[1759765029075,0.1,236.23,236.21,10.87647521]
[1759765029252,0.1,236.23,236.22,53.86307673]
[1759765029569,0.1,236.23,236.22,54.57307673]
[1759765031285,0.79,236.23,236.19,5.07516545]
[1759765031454,0.69,236.22,236.2,30.28]
[1759765031771,0.69,236.22,236.18,20.8]
[1759765031772,0.1,236.23,236.21,30.28]
[1759765031950,0.1,236.23,236.22,30.28]
[1759765032345,0.79,236.23,236.22,30.28]
[1759765033250,5.02317678,236.23,236.22,30.28]
[1759765034270,5.02317678,236.23,236.22,30.26]
[1759765034857,5.02317678,236.23,236.18,33.5656807]
[1759765035076,5.02317678,236.23,236.19,30.26]
[1759765035373,0.69,236.22,236.16,20.8]
[1759765035580,0.69,236.22,236.17,33.02024537]
[1759765035753,0.69,236.22,236.17,30.26]
[1759765035954,14.91608326,236.23,236.13,11.58647521]
[1759765035955,0.69,236.21,236.15,20.8]
[1759765036275,0.69,236.21,236.16,33.02005837]
[1759765036479,4.23370025,236.2,236.17,2.76005837]
[1759765036682,4.23370025,236.2,236.18,30.26]
[1759765037383,0.1,236.23,236.19,14.34513586]
[1759765037569,0.1,236.23,236.22,20.8]
[1759765037762,0.1,236.23,236.22,53.81866065]
[1759765037962,0.1,236.23,236.22,54.51866065]
[1759765038177,0.1,236.23,236.22,53.81866065]
[1759765038558,0.1,236.23,236.22,51.06]
[1759765040290,0.1,236.23,236.21,20.8]
[1759765040488,0.1,236.23,236.22,30.26]
[1759765042301,0.1,236.23,236.22,33.01763905]
[1759765042674,0.1,236.23,236.22,30.26]
[1759765042675,4.33316259,236.23,236.22,30.26]
[1759765043083,0.1,236.23,236.22,30.26]
[1759765043492,4.33316259,236.23,236.22,30.26]
[1759765044292,4.33316259,236.23,236.22,33.01959034]
[1759765044796,0.1,236.23,236.22,33.01959034]
[1759765045005,0.1,236.23,236.22,33.71959034]
[1759765045188,0.1,236.23,236.22,33.01959034]
[1759765047601,5.03316259,236.23,236.22,2.75959034]
[1759765047904,17.54457206,236.23,236.18,30.24]
[1759765048200,2.62850299,236.22,236.18,30.24]
[1759765048408,4.93352101,236.21,236.18,30.24]
[1759765049208,4.93352101,236.21,236.19,2.76508408]
[1759765049512,4.23352101,236.21,236.2,2.76508408]
[1759765049691,4.23352101,236.21,236.2,33.00508408]
[1759765050377,4.2333418,236.22,236.2,33.00508408]
[1759765050578,4.2333418,236.22,236.21,2.76508408]
[1759765050992,4.2333418,236.22,236.21,33.00508408]
[1759765051191,0.1,236.23,236.21,33.70508408]
[1759765051507,0.1,236.23,236.22,54.50508408]
[1759765052275,0.1,236.23,236.22,33.70508408]
[1759765054696,0.1,236.23,236.22,3.46508408]
[1759765054896,0.1,236.23,236.22,33.70508408]
[1759765055099,5.03316259,236.23,236.22,2.76508408]
[1759765055614,17.54457206,236.23,236.13,0.7]
[1759765055922,1.92850299,236.21,236.14,33.01024249]
[1759765056083,1.92850299,236.21,236.15,2.77024249]
[1759765056084,0.7,236.21,236.15,2.77024249]
[1759765056287,0.7,236.2,236.16,2.77024249]
[1759765056584,14.91606907,236.23,236.12,30.24]
[1759765056585,1.92850299,236.17,236.12,30.24]
[1759765056824,1.92850299,236.17,236.06,33.74]
[1759765056825,1.92850299,236.15,236.13,2.77359594]
[1759765057125,1.92850299,236.14,236.06,33.02]
[1759765057326,1.92850299,236.13,236.07,33.01592796]
[1759765057527,1.92850299,236.11,236.08,2.77592796]
[1759765057828,1.92850299,236.11,236.09,2.77592796]
[1759765058128,2.62850299,236.11,236.1,2.77592796]
[1759765058422,1.92850299,236.11,236.1,2.77592796]
[1759765058794,6.16363766,236.12,236.1,2.77592796]
[1759765058992,4.23513467,236.12,236.11,2.77592796]
[1759765059609,4.93513467,236.12,236.11,2.77592796]
[1759765061200,17.45147435,236.12,236.07,30.24]
[1759765061403,17.45147435,236.12,236.08,2.777924]
[1759765061606,17.45147435,236.12,236.09,2.777924]
[1759765061807,17.45147435,236.12,236.1,2.777924]
[1759765061999,17.45147435,236.12,236.07,30.24]
[1759765062200,17.45147435,236.12,236.01,4.64333015]
[1759765062201,0.7,236.11,236.08,2.7777164]
[1759765062520,14.82297136,236.12,236.03,30.24]
[1759765062521,1.92850299,236.09,236.03,30.24]
[1759765062693,0.7,236.08,236.04,2.77905928]
[1759765062899,0.7,236.07,235.97,0.72]
[1759765063104,1.92850299,236.04,235.98,33.02004337]
[1759765063408,4.23674956,236.03,235.99,2.78004337]
[1759765063612,4.23674956,236.03,236.0,2.78004337]
[1759765063809,4.23674956,236.03,236.01,2.78004337]
[1759765064017,4.23674956,236.03,235.98,30.24]
[1759765064018,6.16525255,236.03,236.02,2.78004337]
[1759765064596,4.23674956,236.03,236.02,2.78004337]
[1759765065314,18.54275564,236.03,235.93,0.72]
[1759765065490,3.01413217,236.0,235.94,2.77682778]
[1759765065692,3.01413217,235.99,235.95,2.77682778]
[1759765065988,3.01413217,236.01,235.96,2.77682778]
[1759765066194,3.01413217,236.01,235.97,2.77682778]
[1759765066394,0.7,236.01,235.98,2.77682778]
[1759765066714,3.01413217,235.99,235.91,0.72]
[1759765066912,0.7,236.0,235.92,33.01631209]
[1759765067116,0.7,236.0,235.93,2.77631209]
[1759765067302,0.7,236.0,235.92,30.24]
[1759765067303,14.8311369,235.99,235.94,2.77631209]
[1759765067625,0.7,235.98,235.95,2.77631209]
[1759765067831,0.7,235.98,235.92,30.24]
[1759765067993,3.01413217,235.95,235.93,2.77569368]
[1759765068194,0.7,235.98,235.94,2.77569368]
[1759765068402,3.01413217,235.95,235.92,30.24]
[1759765068601,3.01413217,235.94,235.93,2.77362444]
[1759765068795,0.68,235.97,235.93,2.77362444]
[1759765069002,3.01413217,235.95,235.93,3.47362444]
[1759765069229,4.23836568,235.94,235.91,0.7]
[1759765069442,4.23836568,235.94,235.84,8.37665175]
[1759765069443,6.02826434,235.92,235.84,5.07516545]
[1759765069719,3.01413217,235.86,235.8,0.7]
[1759765069932,0.68,235.91,235.81,2.77420637]
[1759765070130,3.01413217,235.86,235.82,2.77420637]
[1759765070296,3.01413217,235.86,235.8,0.7]
[1759765070496,3.01413217,235.86,235.81,2.77136932]
[1759765071293,3.01413217,235.86,235.81,3.47136932]
[1759765071493,3.01413217,235.86,235.82,2.77136932]
[1759765072327,100.76529295,235.85,235.81,0.7]
[1759765072526,100.76529295,235.85,235.82,3.46432917]
[1759765072704,100.76529295,235.85,235.83,3.46432917]
[1759765072909,100.76529295,235.85,235.84,33.70432917]
[1759765075630,100.76529295,235.85,235.84,44.58080438]
[1759765078931,100.76529295,235.85,235.84,48.8209672]
[1759765080921,100.76529295,235.85,235.84,44.60080438]
[1759765081420,100.76529295,235.85,235.84,48.8409672]
[1759765086032,100.76529295,235.85,235.84,44.60080438]
[1759765086239,100.76529295,235.85,235.84,48.8409672]
[1759765086935,100.76529295,235.85,235.84,43.90080438]
[1759765087328,100.76529295,235.85,235.84,33.02432917]
[1759765087628,101.44529295,235.85,235.84,33.02432917]
[1759765088036,105.68527599,235.85,235.84,30.26]
[1759765090235,101.44529295,235.85,235.84,30.26]
[1759765090450,105.68527599,235.85,235.84,30.26]
[1759765092636,119.29936576,235.85,235.78,0.2]
[1759765092826,3.01413217,235.84,235.79,30.24]
[1759765093031,100.76529295,235.85,235.8,3.46202446]
[1759765093230,100.76529295,235.85,235.81,2.76202446]
[1759765093429,105.00528932,235.85,235.82,30.24]
[1759765093633,105.00528932,235.85,235.83,2.76202446]
[1759765094043,100.76529295,235.85,235.83,2.76202446]
[1759765094838,105.00527849,235.85,235.83,2.76202446]
[1759765095462,100.76529295,235.85,235.83,2.76202446]
[1759765096853,100.76529295,235.85,235.84,0.7]
[1759765097056,100.76529295,235.85,235.84,3.46202446]
[1759765097363,100.76529295,235.85,235.84,53.80202446]
[1759765099355,100.76529295,235.85,235.84,33.00202446]
[1759765100555,100.76529295,235.85,235.84,33.71202446]
[1759765101240,100.76529295,235.85,235.84,37.95218728]
[1759765101951,90.04140793,235.85,235.84,53.90382794]
[1759765102156,90.04140793,235.85,235.84,51.14180348]
[1759765102349,5.04431879,235.85,235.84,51.14180348]
[1759765102662,4.92747065,235.99,235.89,10.87647521]
[1759765102852,0.69,235.99,235.93,20.8]
[1759765103161,0.69,235.99,235.94,30.24]
[1759765103338,0.69,236.02,235.95,10.87647521]
[1759765103539,0.69,236.02,235.96,30.24]
[1759765104438,4.9269412,236.02,235.96,30.24]
[1759765104642,0.69,236.02,235.96,30.24]
[1759765104945,0.69,236.04,235.97,10.87647521]
[1759765105147,0.69,236.03,235.98,30.24]
[1759765105473,0.69,236.02,235.98,30.24]
[1759765105669,0.69,236.01,235.99,30.24]
[1759765106370,4.92636306,236.06,235.99,30.95]
[1759765106567,0.69,236.05,235.99,30.24]
[1759765106872,3.70413217,236.05,235.99,30.24]
[1759765107034,0.69,236.05,235.99,30.24]
[1759765107536,3.70413217,236.05,235.99,30.24]
[1759765108364,4.23657007,236.04,235.99,30.24]
[1759765108659,4.92657007,236.04,235.99,30.24]
[1759765109430,0.69,236.04,235.99,30.95]
[1759765109657,4.23629462,236.06,236.0,0.71]
[1759765109855,4.23602976,236.08,236.0,0.71]
[1759765110055,4.92602976,236.08,236.0,0.71]
[1759765110359,7.94016193,236.08,236.0,0.71]
[1759765110559,3.01413217,236.05,236.0,20.8]
[1759765110763,0.69,236.04,236.01,30.22]
[1759765111265,0.69,236.03,236.01,30.22]
[1759765111459,4.23672297,236.04,236.01,30.22]
[1759765111942,4.92632339,236.06,236.02,3.08923151]
[1759765112260,0.69,236.05,236.03,3.08923151]
[1759765112438,4.23632339,236.06,236.04,30.22]
[1759765112763,4.92632339,236.06,236.04,30.22]
[1759765113561,4.23632339,236.06,236.04,30.22]
[1759765114435,4.92632339,236.06,236.04,30.22]
[1759765116057,4.92632339,236.06,236.0,21.51]
[1759765116265,3.01413217,236.03,235.95,0.69]
[1759765116444,3.01413217,236.03,235.99,20.8]
[1759765116770,3.72413217,236.03,236.0,30.22]
[1759765116951,0.71,236.02,236.0,30.22]
[1759765117159,7.25045556,236.06,236.0,30.91]
[1759765117357,4.23632339,236.06,236.0,30.91]
[1759765117676,4.23632339,236.06,236.01,3.08893847]
[1759765117871,7.25045556,236.06,236.02,30.22]
[1759765118076,3.01413217,236.04,235.97,0.69]
[1759765118250,3.72413217,236.03,235.98,36.08887484]
[1759765118455,3.72413217,236.03,235.99,5.86887484]
[1759765118776,3.72413217,236.03,236.0,2.78002308]
[1759765118961,3.72413217,236.03,236.01,30.22]
[1759765119164,0.71,236.02,236.01,30.22]
[1759765119665,7.96106124,236.02,236.01,30.22]
[1759765120451,7.96106124,236.02,236.01,30.2]
[1759765120858,7.96106124,236.02,235.95,20.8]
[1759765120859,18.55338392,236.02,236.0,30.2]
[1759765121155,3.72413217,236.01,236.0,30.2]
[1759765121353,3.72413217,236.01,235.93,0.69]
[1759765121685,7.25213861,235.96,235.94,32.98297069]
[1759765121860,3.72413217,235.95,235.87,0.69]
[1759765122045,3.72413217,235.95,235.85,15.07516545]
[1759765122046,3.01413217,235.93,235.88,5.87930239]
[1759765122251,0.71,235.92,235.89,32.9849749]
[1759765122547,0.71,235.92,235.85,10.69]
[1759765122548,3.01413217,235.9,235.85,10.0]
[1759765122764,3.72413217,235.9,235.86,36.08117446]
[1759765122955,0.71,235.9,235.87,2.78583739]
[1759765123871,14.83302254,235.96,235.87,2.78583739]
[1759765123872,3.01413217,235.88,235.87,2.78583739]
[1759765124179,3.72413217,235.88,235.87,30.2]
[1759765124549,3.72413217,235.88,235.85,10.0]
[1759765124778,3.72413217,235.87,235.86,30.2]
[1759765125077,2.64188572,235.87,235.86,30.2]
[1759765125680,6.88150924,235.87,235.86,30.2]
[1759765130095,6.88150924,235.87,235.85,10.0]
[1759765130297,0.71,235.86,235.85,10.0]
[1759765130575,2.64188572,235.86,235.85,10.0]
[1759765132089,6.88168899,235.86,235.85,10.0]
[1759765132792,4.23980327,235.86,235.85,10.0]
[1759765133006,4.23954849,235.88,235.85,12.78232299]
[1759765133208,43.20370022,235.98,235.86,0.7]
[1759765133209,4.23872499,235.92,235.86,0.7]
[1759765133376,14.83553746,235.92,235.87,30.22]
[1759765133705,15.54553746,235.92,235.87,30.92]
[1759765133999,17.47742318,235.92,235.87,30.92]
[1759765134203,4.23872499,235.92,235.88,0.7]
[1759765134985,2.64188572,235.91,235.87,30.22]
[1759765135373,1.93188572,235.9,235.87,30.22]
[1759765135573,2.64188572,235.89,235.87,30.22]
[1759765135808,2.64188572,235.89,235.86,30.22]
[1759765136008,1.93188572,235.89,235.86,30.22]
[1759765136304,4.23944378,235.88,235.86,30.22]
[1759765136507,20.8,235.95,235.87,0.7]
[1759765136712,1.93188572,235.9,235.86,30.22]
[1759765137000,1.93188572,235.89,235.86,30.22]
[1759765137195,0.71,235.88,235.86,30.22]
[1759765137402,2.64188572,235.88,235.86,30.22]
[1759765137583,2.64188572,235.87,235.86,30.22]
[1759765138198,4.23980327,235.86,235.85,10.0]
[1759765138791,6.88168899,235.86,235.85,10.0]
[1759765139275,4.23980327,235.86,235.85,10.0]
[1759765140674,6.88168899,235.86,235.85,10.0]
[1759765140985,6.17168899,235.86,235.85,10.0]
[1759765141489,6.88168899,235.86,235.85,10.0]
[1759765142110,6.88168899,235.86,235.85,1e-08]
[1759765143909,2.21199901,235.92,235.85,1e-08]
[1759765144102,14.82939045,236.02,235.86,30.2]
[1759765144418,28.91094402,236.04,235.86,30.2]
[1759765144419,1.93188572,235.93,235.87,0.7]
[1759765144600,4.94821508,235.95,235.87,0.7]
[1759765144932,1.93188572,235.92,235.88,30.2]
[1759765145215,4.94821508,235.95,235.89,0.7]
[1759765145216,4.23821508,235.95,235.89,0.7]
[1759765145591,1.93188572,235.93,235.88,30.2]
[1759765145796,1.93188572,235.89,235.86,30.2]
[1759765146007,0.71,235.92,235.85,1e-08]
[1759765146008,1.93188572,235.87,235.85,1e-08]
[1759765146214,1.93188572,235.86,235.85,1e-08]
[1759765146507,4.23980327,235.86,235.85,1e-08]
[1759765146919,4.23908435,235.9,235.85,0.70000001]
[1759765147105,8.93323583,235.9,235.86,30.9]
[1759765147618,4.23908435,235.9,235.86,30.2]
[1759765147818,4.23908435,235.9,235.87,0.7]
[1759765148130,4.23908435,235.9,235.88,0.7]
[1759765148713,19.53008964,235.92,235.88,0.7]
[1759765148921,19.53008964,235.92,235.86,30.2]
[1759765149116,4.69415148,235.91,235.86,30.2]
[1759765149318,4.69415148,235.89,235.86,30.2]
[1759765149494,4.69415148,235.88,235.86,30.2]
[1759765150116,36.34593816,235.92,235.86,0.7]
[1759765150323,4.69415148,235.9,235.86,30.9]
[1759765150722,4.23926406,235.89,235.86,30.2]
[1759765150947,4.23926406,235.89,235.87,0.7]
[1759765151131,4.23926406,235.89,235.86,30.2]
[1759765151623,19.53157569,235.89,235.85,1e-08]
[1759765152121,14.83742421,235.89,235.86,0.7]
[1759765152908,4.23926406,235.89,235.86,0.7]
[1759765153109,4.23926406,235.89,235.87,0.7]
[1759765154704,4.23890466,235.91,235.87,0.7]
[1759765154912,8.93305614,235.91,235.87,0.7]
[1759765155425,4.69415148,235.9,235.85,1e-08]
[1759765155924,15.54616632,235.91,235.85,3.4803229]
[1759765156226,15.54616632,235.91,235.86,2.78032289]
[1759765156428,4.69415148,235.9,235.86,2.78032289]
[1759765156615,4.23962352,235.87,235.86,30.2]
[1759765156820,9.643775,235.87,235.85,1e-08]
[1759765157128,5.40415148,235.86,235.85,1e-08]
[1759765158535,4.23980327,235.86,235.85,1e-08]
[1759765158751,10.59702465,235.92,235.85,0.70000001]
[1759765158911,4.69415148,235.91,235.86,2.78255376]
[1759765159112,4.69415148,235.91,235.87,2.78255376]
[1759765159346,4.69415148,235.91,235.88,2.78249783]
[1759765159631,4.69415148,235.91,235.86,0.7]
[1759765159835,41.99093028,235.95,235.87,2.78245698]
[1759765159836,14.83679524,235.9,235.87,2.78245698]
[1759765160043,4.69415148,235.89,235.85,1e-08]
[1759765160226,4.69415148,235.88,235.86,2.78299907]
[1759765160406,4.69415148,235.89,235.87,2.78299907]
[1759765160610,4.69415148,235.89,235.85,1e-08]
[1759765160813,4.69415148,235.89,235.86,2.78448697]
[1759765161038,4.69415148,235.89,235.87,2.78448697]
[1759765161341,4.69415148,235.89,235.88,2.78448697]
[1759765161540,5.36415148,235.89,235.88,2.78448697]
[1759765161748,14.83805324,235.88,235.85,1e-08]
[1759765162032,4.69415148,235.86,235.85,1e-08]
[1759765162212,4.69415148,235.86,235.85,2.7876813]
[1759765162540,14.83805324,235.88,235.85,2.7876813]
[1759765162723,4.69415148,235.86,235.85,1e-08]
[1759765162921,4.23944378,235.88,235.85,2.78921445]
[1759765163238,4.23944378,235.88,235.86,2.78921444]
[1759765163535,4.23944378,235.88,235.87,2.78921444]
[1759765164549,9.60359526,235.88,235.87,2.78921444]
[1759765165217,20.20220472,235.88,235.85,1e-08]
[1759765165414,4.69415148,235.86,235.85,1e-08]
[1759765165646,4.69415148,235.86,235.85,2.79607202]
[1759765165821,8.93395475,235.86,235.85,2.79607202]
[1759765166618,4.23980327,235.86,235.85,2.79607202]
[1759765166822,4.23980327,235.86,235.85,5.90509404]
[1759765167231,4.23980327,235.86,235.85,2.79607202]
[1759765167432,4.23980327,235.86,235.85,3.49607202]
[1759765168021,10.59860946,235.88,235.85,2.79607202]
[1759765168233,10.59860946,235.88,235.86,2.79607201]
[1759765168445,10.59860946,235.88,235.87,2.79607201]
[1759765168750,15.29276094,235.88,235.87,2.79607201]
[1759765168930,10.59860946,235.88,235.87,2.79607201]
[1759765169937,13.20010601,235.88,235.87,2.79607201]
[1759765170350,17.43954979,235.88,235.87,2.79607201]
[1759765170653,16.76954979,235.88,235.87,2.79607201]
[1759765170870,14.83805324,235.88,235.87,2.79607201]
[1759765172042,10.59860946,235.88,235.87,2.79607201]
[1759765173427,4.90908435,235.9,235.87,2.79607201]
[1759765173428,4.23908435,235.9,235.87,2.79607201]
[1759765173723,6.1705809,235.9,235.88,2.79607201]
[1759765173922,4.23908435,235.9,235.89,2.79607201]
[1759765174855,4.23908435,235.9,235.89,3.49607201]
[1759765175234,6.17004188,235.93,235.89,2.79607201]
[1759765175434,6.17004188,235.93,235.9,2.79607201]
[1759765175737,0.66,235.92,235.91,2.79607201]
[1759765176049,14.83616632,235.91,235.85,1e-08]
[1759765176853,0.66,235.9,235.85,1e-08]
[1759765177051,1.93149655,235.88,235.85,1e-08]
[1759765177239,1.93149655,235.86,235.85,1e-08]
[1759765178156,6.17129982,235.86,235.85,1e-08]
[1759765178864,4.23980327,235.86,235.85,1e-08]
[1759765181962,6.17107836,235.88,235.85,1e-08]
[1759765182165,4.23958181,235.88,235.85,0.67000001]
[1759765182861,4.23926406,235.89,235.85,0.67000001]
[1759765183847,4.23926406,235.89,235.85,1e-08]
[1759765184045,4.23962352,235.87,235.85,1e-08]
[1759765185963,4.23926406,235.89,235.85,0.67000001]
[1759765186145,6.17076061,235.89,235.85,0.67000001]
[1759765186544,0.66,235.88,235.85,1e-08]
[1759765187062,3.67874459,235.87,235.85,1e-08]
[1759765187870,7.91836811,235.87,235.86,2.79594104]
[1759765189152,7.25836811,235.87,235.86,2.79594104]
[1759765190468,7.91836811,235.87,235.86,2.79594104]
[1759765191346,4.23962352,235.87,235.86,2.79594104]
[1759765191752,7.91836811,235.87,235.86,2.79594104]
[1759765194662,10.5964943,235.93,235.86,3.47594104]
[1759765194975,10.5964943,235.93,235.87,3.47594104]
[1759765194976,17.85365324,235.93,235.87,3.47594104]
[1759765195151,14.83490865,235.93,235.88,2.79594104]
[1759765195356,14.83490865,235.93,235.89,2.79594104]
[1759765195557,0.66,235.92,235.9,2.79594104]
[1759765195758,0.66,235.92,235.91,2.79594104]
[1759765195983,4.23854533,235.93,235.91,2.79594104]
[1759765196159,4.23854533,235.93,235.92,2.79594104]
[1759765196762,4.23836568,235.94,235.92,2.79594104]
[1759765196978,4.23764725,235.98,235.93,3.47594104]
[1759765197162,4.23764725,235.98,235.94,3.47594104]
[1759765197360,4.23764725,235.98,235.95,2.79594104]
[1759765197570,4.23764725,235.98,235.96,2.79594104]
[1759765197878,4.89764725,235.98,235.97,2.79594104]
[1759765198878,20.8,236.02,235.97,2.79594104]
[1759765198879,0.66,236.02,235.97,2.79594104]
[1759765199050,3.67874459,236.01,235.98,2.79594104]
[1759765199250,0.66,236.0,235.99,2.79594104]
[1759765199473,3.67874459,236.0,235.99,2.79594104]
[1759765200381,3.67874459,236.0,235.91,30.86]
[1759765200576,3.01874459,235.99,235.92,3.47046684]
[1759765200761,4.23764725,235.98,235.93,3.47046684]
[1759765201075,4.23764725,235.98,235.94,3.47046684]
[1759765201254,4.23764725,235.98,235.95,2.79046684]
[1759765201463,4.23764725,235.98,235.96,2.79046684]
[1759765201780,4.23764725,235.98,235.97,2.79046684]
[1759765204263,10.59381582,235.99,235.97,2.79046684]
[1759765204464,10.59381582,235.99,235.98,2.79046684]